Cogmind - Beta 14 @@@ ROGUE MODE // 2024.09.21 @ 13:37:19 Player: ZarZap Result: Destroyed by H-61 Shepherd with Heavy Assault Cannon Performance ------------- Evolutions (2) 1000 Regions Visited (6) 1200 Robots Destroyed (35) 175 Value Destroyed (932) 932 Prototype IDs (2) 40 Alien Tech Used (0) 0 Bonus (362) 362 TOTAL SCORE: 3709 Bonus ------- Follower Combat Kills 62 Aligned with FarCom 300 Cogmind --------- Core Integrity 0/550 Matter 300/300 Energy 100/100 System Corruption 0% Temperature Cool (0) Movement Core (700) Ox13 Location -8/Materials Parts ------- > --- POWER (1) -------- (None) > --- PROPULSION (4) --- (None) > --- UTILITY (3) ------ High-capacity Storage Unit Improved Signal Interpreter Improved Utility Shielding > --- WEAPON (3) ------- (None) > --- INVENTORY (20) --- Light Ion Engine Nuclear Core Light Nuclear Core Aluminum Leg Utility Shielding Mini Grenade Launcher Peak State ------------ > --- POWER ------------ Deuterium Engine > --- PROPULSION ------- Improved Aluminum Leg Improved Aluminum Leg Improved Aluminum Leg Improved Aluminum Leg > --- UTILITY ---------- High-capacity Storage Unit Improved Signal Interpreter Medium Armor Plating > --- WEAPON ----------- Shotgun Minigun Field Lobotomy Kit > --- INVENTORY -------- Light Ion Engine Light Ion Engine Improved Aluminum Leg Utility Shielding Shock Rifle Improved Medium Laser Light Assault Rifle Mini Grenade Launcher [Rating: 33] Favorites ----------- Power Light Ion Engine Engine Light Ion Engine Power Core Nuclear Core Propulsion Improved Aluminum Leg Leg Improved Aluminum Leg Wheel Wheel Utility Improved Signal Interpreter Storage High-capacity Storage Unit Processor Improved Signal Interpreter Protection Medium Armor Plating Weapon Shotgun Energy Gun Improved Medium Laser Ballistic Gun Shotgun Ballistic Cannon Flak Cannon Launcher Mini Grenade Launcher Special Weapon Field Lobotomy Kit Build | -11 -10 -9 -9 -9 -8 -8 ------- Run | Yrd Mat Mat Min Exi Min Mat Slots Evolved 4 | . . 2 . . . 2 Power . | . . . . . . . Propulsion 2 | . . 2 . . . . Utility 1 | . . . . . . 1 Weapon 1 | . . . . . . 1 Parts Attached 45 | 2 7 4 1 3 1 27 Power 6 | . 2 . . . . 4 Engine 4 | . 2 . . . . 2 Core 2 | . . . . . . 2 Reactor . | . . . . . . . Propulsion 13 | 2 3 2 . . . 6 Treads . | . . . . . . . Leg 10 | . 2 2 . . . 6 Wheel 3 | 2 1 . . . . . Hover . | . . . . . . . Flight . | . . . . . . . Utility 6 | . 1 . 1 1 . 3 Device . | . . . . . . . Storage 1 | . . . . 1 . . Processor 1 | . . . 1 . . . Hackware . | . . . . . . . Protection 4 | . 1 . . . . 3 Artifact . | . . . . . . . Weapon 20 | . 1 2 . 2 1 14 Energy Gun 4 | . . 1 . 1 . 2 Energy Cannon . | . . . . . . . Ballistic Gun 11 | . 1 1 . . . 9 Ballistic Cannon 1 | . . . . . . 1 Launcher 1 | . . . . . . 1 Special Weapon 3 | . . . . 1 1 1 Impact Weapon . | . . . . . . . Slashing Weapon . | . . . . . . . Piercing Weapon . | . . . . . . . Special Melee Weapon . | . . . . . . . Unidentified Prototypes 2 | . . 1 . 1 . . Parts Lost 19 | . 1 . . . . 18 Power 3 | . 1 . . . . 2 Propulsion 8 | . . . . . . 8 Utility 1 | . . . . . . 1 Weapon 7 | . . . . . . 7 Highest Loss Streak 10 | . 1 . . . . 10 To Critical Strikes 1 | . . . . . . 1 Average Slot Usage (%) 98 | . 93 100 100 100 100 98 Engine 9 | . 11 11 11 11 11 7 Leg 35 | . 4 44 44 44 44 35 Wheel 2 | . 23 . . . . . Storage 10 | . 14 11 11 11 11 9 Processor 8 | . . . 2 11 11 9 Protection 6 | . 10 11 8 . . 8 Energy Gun 6 | . 2 7 11 11 11 3 Ballistic Gun 15 | . 25 14 11 11 7 17 Ballistic Cannon 2 | . . . . . . 4 Peak Build Rating 33 | 6 10 17 19 26 27 33 Average Rating 20 | 6 7 15 17 18 21 24 On Entrance 14 | 6 6 10 17 19 19 27 Naked Turns . | . . . . . . . Heaviest Build 70 | 11 11 15 15 49 54 70 Greatest Support 54 | 20 26 52 52 52 52 54 Greatest Overweight (x) 14 | . . . . . 1 14 Average Overweight (x) . | . . . . . . 1 Largest Inventory Capacity 20 | 8 8 8 8 20 20 20 Average Capacity 16 | 8 8 8 8 14 20 20 Most Carried 15 | 5 6 7 8 8 8 15 Average Carried 8 | 3 2 5 7 7 7 10 Final Capacity 20 | 8 8 8 8 20 20 20 Final Carried 8 | 2 6 7 8 7 7 6 Class Distribution -------------------- 55% | Mutant 44% | Skirmisher Dominant Class ---------------- Mutant | -10/Materials Mutant | -9/Materials Mutant | -9/Mines Mutant | -9/Exiles Mutant | -8/Mines Skirmisher | -8/Materials Resources | -11 -10 -9 -9 -9 -8 -8 ----------- Run | Yrd Mat Mat Min Exi Min Mat Matter Collected 1222 | 200 124 66 . . 61 771 Remotely . | . . . . . . . Salvage Created 1047 | . 266 184 . . . 597 Parts 68 | . 15 8 . . . 45 Haulers Intercepted . | . . . . . . . Recyclers Shooed 2 | . 2 . . . . . Parts Field Recycled . | . . . . . . . Retrieved Matter . | . . . . . . . Parts Self-Destructed . | . . . . . . . Prevented . | . . . . . . . Kills | -11 -10 -9 -9 -9 -8 -8 ------- Run | Yrd Mat Mat Min Exi Min Mat Combat Hostiles Destroyed 24 | . 6 2 . . . 16 Guns 21 | . 5 2 . . . 14 Cannons 2 | . . . . . . 2 AOE 1 | . 1 . . . . . Classes Destroyed 9 | . 4 . . . . 5 Worker 4 | . . . . . . 4 Builder 2 | . . . . . . 2 Recycler 2 | . 1 1 . . . . Watcher 3 | . 1 1 . . . 1 Swarmer 7 | . 3 . . . . 4 Grunt 13 | . 3 2 . . . 8 Sentry 2 | . . . . . . 2 Specialist 1 | . . . . . . 1 Hunter 1 | . . . . . . 1 Best Kill Streak 4 | . 3 4 . . . 4 Combat Bots Only 3 | . 3 2 . . . 3 Max Kills in Single Turn 2 | . 1 2 . . . 2 Gunslinging . | . . . . . . . Exploded 1 | . 1 . . . . . Melee . | . . . . . . . Uniques/NPCs Destroyed . | . . . . . . . Combat | -11 -10 -9 -9 -9 -8 -8 -------- Run | Yrd Mat Mat Min Exi Min Mat Hostile Shots Fired 260 | . 36 11 . . 1 212 Missed 59 | . 10 3 . . 1 45 Damage Taken 2945 | . 246 90 . . . 2609 Core 654 | . 78 . . . . 576 Absorbed by Shields . | . . . . . . . Redirected to Shielding 20 | . . . . . . 20 Core Remaining (%) 89 | 100 68 . . . 100 . Volleys Fired 110 | . 37 9 . . 3 61 Largest 3 | . 2 2 . . 1 3 Hottest 119 | . 60 79 . . . 119 Shots Fired 259 | . 74 17 . . 3 165 Gun 215 | . 74 17 . . . 124 Cannon 35 | . . . . . . 35 Launcher 4 | . . . . . . 4 Special 5 | . . . . . 3 2 Kinetic 214 | . 63 9 . . . 142 Thermal 21 | . . 8 . . . 13 Explosive 4 | . . . . . . 4 Electromagnetic 15 | . 11 . . . . 4 Robot Hit Streak 11 | . 11 7 . . 3 8 Robot Miss Streak 8 | . 4 4 . . 1 8 Penetration Max . | . . . . . . . Secondary Targets 1 | . 1 . . . . . Max Gunslinging Chain 1 | . 1 . . . . . Shots Hit Robots 156 | . 47 11 . . 2 96 Core Hits 97 | . 23 7 . . . 67 Critical Kills . | . . . . . . . Critical Parts Destroyed . | . . . . . . . Critical Strikes 2 | . . 2 . . . . Burn 2 | . . 2 . . . . Melee Attacks . | . . . . . . . Impact . | . . . . . . . Slashing . | . . . . . . . Piercing . | . . . . . . . Sneak Attacks . | . . . . . . . Combat Hostiles . | . . . . . . . Follow-up Attacks . | . . . . . . . Damage Inflicted 2170 | . 424 190 . . 19 1537 Guns 1542 | . 389 181 . . . 972 Cannons 400 | . . . . . . 400 Explosions 186 | . 35 . . . . 151 Melee . | . . . . . . . Ramming 42 | . . 9 . . 19 14 Kinetic 1706 | . 343 95 . . . 1268 Thermal 189 | . 35 86 . . . 68 Explosive 151 | . . . . . . 151 Electromagnetic 82 | . 46 . . . . 36 Impact . | . . . . . . . Slashing . | . . . . . . . Piercing . | . . . . . . . Highest Corruption . | . . . . . . . Average Corruption . | . . . . . . . Corruption Purged . | . . . . . . . Corruption Blocked . | . . . . . . . Overload Shots . | . . . . . . . Overflow Damage . | . . . . . . . Projectiles . | . . . . . . . Explosions . | . . . . . . . Melee . | . . . . . . . Knockbacks 21 | . . . . . . 21 Impact . | . . . . . . . Kinetic 20 | . . . . . . 20 Secondary 1 | . . . . . . 1 Self-Inflicted Damage 8 | . 7 . . . . 1 Shots 2 | . 1 . . . . 1 Rammed . | . . . . . . . Targets Rammed 7 | . . 1 . . 2 4 Kicked 7 | . . 1 . . 2 4 Crushed . | . . . . . . . Highest Temperature 210 | . 52 78 . . . 210 Average Temperature 56 | . 24 33 . . . 65 Received Heat Transfer 714 | . 36 48 . . . 630 Siege Activations . | . . . . . . . Robots Corrupted . | . . . . . . . Combat Hostiles . | . . . . . . . Parts Fried . | . . . . . . . Impact Corruptions . | . . . . . . . Robots Melted . | . . . . . . . Combat Hostiles . | . . . . . . . Parts Melted 3 | . . 2 . . . 1 Heat Transferred 531 | . 50 333 . . . 148 Parts Sabotaged . | . . . . . . . Parts Stolen . | . . . . . . . Parts Stripped . | . . . . . . . Power Chain Reactions 1 | . 1 . . . . . Alert | -11 -10 -9 -9 -9 -8 -8 ------- Run | Yrd Mat Mat Min Exi Min Mat Peak Influence 230 | . 230 203 78 . 34 167 Initial 96 | . . 96 78 . . 13 Average 67 | . 165 137 78 . 8 58 Maximum Alert Level 1 | . 1 1 . . . . Low Security (%) 92 | 100 46 80 100 . 100 100 Level 1 7 | . 53 19 . . . . Level 2 . | . . . . . . . Level 3 . | . . . . . . . Level 4 . | . . . . . . . Level 5 . | . . . . . . . High Security . | . . . . . . . Max Security . | . . . . . . . Squads Dispatched 6 | . 2 1 . . . 3 Investigation 2 | . . 1 . . . 1 Extermination . | . . . . . . . Reinforcement 4 | . 2 . . . . 2 Assault . | . . . . . . . Garrison . | . . . . . . . Intercept . | . . . . . . . Searches Triggered . | . . . . . . . Construction Impeded . | . . . . . . . Haulers Reinforced . | . . . . . . . Active Scanning Responses . | . . . . . . . Cargo Convoy Interrupts . | . . . . . . . Stealth | -11 -10 -9 -9 -9 -8 -8 --------- Run | Yrd Mat Mat Min Exi Min Mat Distress Signals . | . . . . . . . Communications Jammed . | . . . . . . . Distress Signals . | . . . . . . . Times Spotted 51 | . 11 5 . . 3 32 Peak Tracking Total 8 | . 3 3 . . 3 8 Tactical Retreats 3 | . . . . . . 3 Traps | -11 -10 -9 -9 -9 -8 -8 ------- Run | Yrd Mat Mat Min Exi Min Mat Traps Triggered 2 | . . 1 . . . 1 Indirectly . | . . . . . . . Trap Hack Attempts . | . . . . . . . Triggered . | . . . . . . . Disarmed . | . . . . . . . Reprogrammed . | . . . . . . . Reused . | . . . . . . . Traps Extracted . | . . . . . . . Installed . | . . . . . . . Triggered . | . . . . . . . Most Traps Carried 1 | . . . 1 1 . . Machines | -11 -10 -9 -9 -9 -8 -8 ---------- Run | Yrd Mat Mat Min Exi Min Mat Machines Disabled 1 | . 1 . . . . . Max in Single Turn 1 | . 1 . . . . . Machines Repaired . | . . . . . . . Machines Dismantled . | . . . . . . . Machines Sabotaged . | . . . . . . . Overloaded Fab Kills . | . . . . . . . Hacking | -11 -10 -9 -9 -9 -8 -8 --------- Run | Yrd Mat Mat Min Exi Min Mat Machines Accessed . | . . . . . . . Terminals . | . . . . . . . Fabricators . | . . . . . . . Repair Stations . | . . . . . . . Recycling Units . | . . . . . . . Scanalyzers . | . . . . . . . Garrison Access . | . . . . . . . Total Hacks . | . . . . . . . Successful . | . . . . . . . Failed . | . . . . . . . Catastrophic . | . . . . . . . Database Lockouts . | . . . . . . . Manual 1 | . . . . 1 . . Terminals . | . . . . . . . Fabricators . | . . . . . . . Repair Stations . | . . . . . . . Recycling Units . | . . . . . . . Scanalyzers . | . . . . . . . Garrison Access . | . . . . . . . Terminal Hacks . | . . . . . . . Fabricator Hacks . | . . . . . . . Repair Station Hacks . | . . . . . . . Recycling Unit Hacks . | . . . . . . . Scanalyzer . | . . . . . . . Garrison Access Hacks . | . . . . . . . Unauthorized Hacks . | . . . . . . . Terminals . | . . . . . . . Fabricators . | . . . . . . . Repair Stations . | . . . . . . . Recycling Units . | . . . . . . . Scanalyzers . | . . . . . . . Garrison Access . | . . . . . . . Data Cores Recovered . | . . . . . . . Used . | . . . . . . . Hacking Detections . | . . . . . . . Full Trace Events . | . . . . . . . Feedback Events . | . . . . . . . Feedback Blocked . | . . . . . . . Robot Schematics Acquired . | . . . . . . . Robots Built . | . . . . . . . Authchips . | . . . . . . . Time . | . . . . . . . Total Robot Build Rating . | . . . . . . . Part Schematics Acquired . | . . . . . . . Parts Built . | . . . . . . . Authchips . | . . . . . . . Time . | . . . . . . . Total Part Build Rating . | . . . . . . . Parts Repaired . | . . . . . . . Time . | . . . . . . . Parts Recycled . | . . . . . . . Recycled Matter . | . . . . . . . Retrieved Matter . | . . . . . . . Retrieved Components . | . . . . . . . Parts Scanalyzed . | . . . . . . . Part Schematics Acquired . | . . . . . . . Parts Damaged . | . . . . . . . Bothacking | -11 -10 -9 -9 -9 -8 -8 ------------ Run | Yrd Mat Mat Min Exi Min Mat Used RIF Installer . | . . . . . . . Robots Hacked . | . . . . . . . Non-combat . | . . . . . . . Combat . | . . . . . . . Robot Hacks Applied . | . . . . . . . Relay Couplers Released . | . . . . . . . Fabnet Peak Effective % . | . . . . . . . Robots Rewired . | . . . . . . . Allies Hacked . | . . . . . . . Hacks Repelled . | . . . . . . . Allies | -11 -10 -9 -9 -9 -8 -8 -------- Run | Yrd Mat Mat Min Exi Min Mat Total Allies 3 | . . . . . 2 1 Largest Group 3 | . . . . . 2 3 Highest-Rated Group 61 | . . . . . 32 61 Highest-Rated Ally 29 | . . . . . 16 29 Total Orders . | . . . . . . . Ally Attacks 20 | . . . . . 10 10 Total Damage 195 | . . . . . 106 89 Kills 2 | . . . . . 1 1 Allies Corrupted . | . . . . . . . Allies Melted . | . . . . . . . Field Lobotomies 3 | . . . . . 2 1 Intel | -11 -10 -9 -9 -9 -8 -8 ------- Run | Yrd Mat Mat Min Exi Min Mat Robot Analysis Total . | . . . . . . . Derelict Logs Recovered . | . . . . . . . Drone Launches . | . . . . . . . Drone Recoveries . | . . . . . . . Exploration | -11 -10 -9 -9 -9 -8 -8 ------------- Run | Yrd Mat Mat Min Exi Min Mat Turns Passed 3633 | 6 356 249 49 555 616 1802 Spaces Moved 1954 | 1 264 180 39 455 444 571 Core 1 | . . . . . . 1 Treads . | . . . . . . . Legs 1733 | . 45 180 39 455 444 570 Wheels 220 | 1 219 . . . . . Hover . | . . . . . . . Flight . | . . . . . . . Fastest Speed 80 | 80 80 120 120 120 120 190 Average Speed 140 | 80 89 120 120 120 135 191 Slowest Speed 750 | 80 120 120 120 120 190 750 Overloaded Moves . | . . . . . . . Propulsion Burnouts . | . . . . . . . Robots Hopped . | . . . . . . . Cave-ins Triggered . | . . . . . . . Exploration Rate (%) 38 | 2 47 21 12 78 73 38 Regions Visited 6 Branch Regions 3 Pre-discovered Areas . | . . . . . . . Known Exits Taken 3 | . . . 1 1 1 . Unknown Exits Taken 3 | 1 1 1 . . . . Scrap Searched 1 | . . . . . 1 . Spaces Dug . | . . . . . . . Terrain Destroyed 14 | . 2 . . . . 12 Melee . | . . . . . . . Projectile . | . . . . . . . AOE 14 | . 2 . . . . 12 Terrain Rammed . | . . . . . . . Walls Destroyed . | . . . . . . . Machines Disabled . | . . . . . . . Actions | -11 -10 -9 -9 -9 -8 -8 --------- Run | Yrd Mat Mat Min Exi Min Mat Total 2626 | 6 318 195 40 465 451 1151 Wait 486 | . 6 . . . 1 479 Move 1948 | . 263 179 38 454 443 571 Hop . | . . . . . . . Pick Up 15 | . 4 2 1 1 . 7 Fast Attach 1 | . 1 . . . . . Attach 19 | . 1 2 . 1 1 14 Detach 3 | . . . . 1 1 1 Swap 25 | 2 5 2 1 2 . 13 Drop 9 | 4 1 . . 3 . 1 Fire 110 | . 37 9 . . 3 61 Melee . | . . . . . . . Ram . | . . . . . . . Kick 7 | . . 1 . . 2 4 Crush . | . . . . . . . Escape Stasis . | . . . . . . . Rewire 3 | . . . . 3 . . Trap . | . . . . . . . Miscellaneous . | . . . . . . . Route ------- -11/Scrapyard -10/Materials (discovered 2 exits: [*Mat] / [*Min]) -9/Materials (discovered 2 exits: [*Min] / [*Sto]) -9/Mines -9/Exiles -8/Mines -8/Materials (discovered 1 exit: [*Fac]) History --------- Turn | Location | Event 7 | -11/Scrapyard | Discovered new exit (range 0) 7 | -11/Scrapyard | Entered Materials 223 | -10/Materials | Discovered new exit (range 8) 328 | -10/Materials | Build established: Mutant 345 | -10/Materials | Discovered new exit (range 16) 363 | -10/Materials | Entered another Materials area 363 | -9/Materials | Evolved 2 slots: Propulsion x2 487 | -9/Materials | Discovered new exit (range 7) 562 | -9/Materials | Discovered new exit (range 12) 612 | -9/Materials | Entered Mines 619 | -9/Mines | YI-UF0 nonchalantly dropped a Grenade Launcher on the ground 633 | -9/Mines | Found a hidden stash of uninstalled traps 653 | -9/Mines | Deemed a non-threat by the Exiles lab entrance 653 | -9/Mines | Discovered new exit (range 5) 658 | -9/Mines | Identified exit to Exiles 661 | -9/Mines | Entered Exiles 694 | -9/Exiles | Met 8R-AWN 711 | -9/Exiles | Met EX-HEX 750 | -9/Exiles | Met EX-BIN 765 | -9/Exiles | Aligned with FarCom system 766 | -9/Exiles | Given EX-Vault access code 798 | -9/Exiles | Opened EX-Vault 803 | -9/Exiles | Found Prototype Special Weapon 804 | -9/Exiles | Identified Field Lobotomy Kit 832 | -9/Exiles | Warned to stay clear of 0b10 Research branches 864 | -9/Exiles | Met EX-DEC 956 | -9/Exiles | Discovered new exit (range 14) 1035 | -9/Exiles | Visited The Gauntlet 1215 | -9/Exiles | Identified exit to Mines 1216 | -9/Exiles | Left Exiles lab with Field Lobotomy Kit 1216 | -9/Exiles | Entered Mines 1663 | -8/Mines | Assimilated G-47 Trooper with FLK Orb 1666 | -8/Mines | Assimilated G-47 Trooper with FLK Orb 1813 | -8/Mines | Discovered new exit (range 9) 1826 | -8/Mines | Identified exit to Materials 1832 | -8/Mines | Entered Materials 1832 | -8/Materials | Accompanied by 2 allies 1832 | -8/Materials | Evolved 2 slots: Utility x1, Weapon x1 1898 | -8/Materials | Assimilated G-50 Soldier with FLK Orb 1954 | -8/Materials | Lost 3 allies 2233 | -8/Materials | Build established: Skirmisher 2945 | -8/Materials | Core integrity fell below 50% 2997 | -8/Materials | Lost 10 parts (1p4n1u4w) 3597 | -8/Materials | Discovered new exit (range 10) 3629 | -8/Materials | Core integrity fell below 20% 3634 | -8/Materials | Destroyed by H-61 Shepherd with Heavy Assault Cannon Last Messages --------------- 03622_ K-01 Serf collects debris. 03622_ U-05 Engineer builds a Wall. 03624_ U-05 Engineer builds a Door. 03624_ Shotgun destroyed. 03625_ Acquired 23 matter. 03625_ K-01 Serf collects debris. 03625_ Penetrated by Slug. 03626_ Acquired 1 matter. 03626_ Aluminum Leg destroyed. 03626_ Knocked back. 03628_ K-01 Serf collects debris. 03628_ Slug penetrates Wall. 03628_ Knocked back. 03628_ Penetrated by Slug. 03628_ Lgt. Assault Rifle destroyed. 03628_ U-05 Engineer builds a Wall. 03630_ K-01 Serf collects debris. 03632_ U-05 Engineer builds a Wall. 03633_ K-01 Serf collects debris. 03634_ Penetrated by Slug. Map ----- +----------------------------------------------------+ | # # ## ]] | | # # % / ] | | # # ######## ########## ## | | # """ # # = ####+#####??######+#### | | # """ # # # #??# % # " " | | # """ + =#* ]#""" #??#= # "R" | | # # %+!! #""" #??#] # """ | | # """ ## # /#""" #??# ! ###### | | # """ ## # # #??# ! #????? | | # """ ## # ! #""" #??# #????? | | # ## # !! #""" #??# #????? | | #] ## # !! #""" #??# ] #????? | | ####+### ###### #??###########????? | | ???# #?#/###############?????????????????? | | ???# #?# ! #???????????????????? | | ???# #?# #???????????????????? | | ???# ### """ """ #???????????????????? | | ???#=%[/ """""""???????????????????????? | | ???# ### """""?????????s??????????????? | | ???# #?# ???????????????????????? | | ???# #?#######/#########?????????????????? | | ???# #??????# % # #?????????????????? | | ???# ######## # #?????????????????? | | ???# # "" #?????????????????? | | ???########## #% """ #?????????????????? | | ????????????# #@ %S" #?????????????????? | | ????????????# #=%k[ #?????????????????? | | ????????????# ##xg#######??????????????? | | ????????????# sHu=t ???????? | | ?????? / =k ???????? | | ???# # % t ???????? | | ???# ???# ###+#############????????? | | ???# ???????# #?? ????????????????????? | | ????????????# #?? ??w????????????????? | | ???????????#" #??" ??????????????????? | | ?????????? #?? #?????????????????? | | ????????? < #?? #?????????????????? | | ????????# #?? #?????????????????? | | ????????##### ????####?????????????????? | | ????????????# ?????????????????????????? | | ????????????# ?????????????????????????? | | ????????????# ?????????????????????????? | | ????????????# ?????????????????????????? | | ?????????????????????????????????????????? | | ?????????????????????????????????????????? | | ?????????????????????????????????????????? | | ?????????????????????????????????????????? | | ?????????????????????????????????????????? | | ?????????????????????????????????????????? | | ?????????????????????????????????????????? | +----------------------------------------------------+ Best States ------------- Heat Dissipation 31 Energy Generation 14 Energy Capacity 275 Matter Stores 300 Matter Capacity 300 Sight Range 16 Terrain Scan Density 10 Armor Coverage 225 Utility Shielding 66 Evasion (%) 55 Item Schematics ----------------- None Robot Schematics ------------------ None Fabricated ------------ Nothing Alien Tech Used ----------------- None Achievements -------------- None Challenges ------------ None Game ------ Seed ConstructReflectiveTorch Manual? 0 Play Time 00:21:05 Cumulative 25.7 hours Start 2024.09.21 @ 13:18:10 End 2024.09.21 @ 13:37:19 Sessions 1 Manual Loads 0 Difficulty Rogue Special Mode None Game No. 106 Rogue 102 Adventurer 4 Explorer 0 Win Type - Total 0 Types 0/0/0/0/0/0/0/0/0 Lore% 12 Gallery% 29 Achievement% 19 Wizard Run 0 Options --------- Layout 2 ASCII 0 Keyboard 0 Movement Mouse Keybinds 0 Fullscreen 1 Font 16/SmallcapsGlow Map View 55x47 Zoom Use 0% Tactical HUD 1 Map Filters NONE Filters NONE Steam 1 RUN: 1e98cd0c-4a7c-4c50-be8e-6b3168abe5c2